bitfinex-derivatives/quotes_SOLF0:USTF0_20220109
["timestamp","ask_amount","ask_price","bid_price","bid_amount"]
[1641698150406,27.66479,143.77,143.7,34.13779]
[1641698152007,27.66479,143.77,143.7,27.66479]
[1641698152208,31.66479,143.77,143.66,1.739]
[1641698152410,40.42879,143.77,143.65,6.95918438]
[1641698152608,4.0,143.73,143.63,48.1231]
[1641698152808,10.021,143.73,143.63,46.3841]
[1641698153009,6.021,143.73,143.63,46.3841]
[1641698154110,27.66479,143.7,143.63,46.3841]
[1641698154311,27.66479,143.7,143.62,27.66479]
[1641698159616,2.26570707,143.69,143.62,27.66479]
[1641698160717,2.26570707,143.69,143.65,6.95918438]
[1641698160919,2.26570707,143.69,143.65,13.76418438]
[1641698161118,9.3150013,143.71,143.68,4.0]
[1641698161319,9.3150013,143.71,143.68,19.33097384]
[1641698161519,38.8132065,143.73,143.68,15.33097384]
[1641698161716,14.74011173,143.74,143.68,15.33097384]
[1641698162720,14.74011173,143.74,143.68,6.95797384]
[1641698162919,5.2367065,143.77,143.73,10.95434473]
[1641698163118,121.45777172,143.9,143.73,10.95434473]
[1641698163119,58.68952199,143.86,143.76,24.0]
[1641698163319,92.82729371,143.9,143.85,30.94637399]
[1641698163520,90.62335001,143.87,143.86,1.737]
[1641698163821,62.32335001,143.87,143.86,1.737]
[1641698164222,62.32335001,143.87,143.86,57.06658]
[1641698164522,136.6325,144.04,143.86,57.06658]
[1641698164721,4.0,143.96,143.86,55.32958]
[1641698164922,4.0,143.99,143.86,55.32958]
[1641698165122,4.0,144.01,143.86,55.32958]
[1641698165322,4.0,144.0,143.86,55.32958]
[1641698165526,4.0,143.99,143.86,55.32958]
[1641698165723,4.0,143.98,143.86,55.32958]
[1641698165923,4.0,143.97,143.86,55.32958]
[1641698166127,4.0,143.96,143.86,55.32958]
[1641698166324,4.0,143.96,143.9,27.66479]
[1641698166523,4.0,143.95,143.9,27.66479]
[1641698166723,27.66479,143.98,143.86,27.66479]
[1641698166724,4.0,143.92,143.86,27.66479]
[1641698166925,4.0,143.89,143.86,27.66479]
[1641698167123,4.0,143.89,143.79,6.95216908]
[1641698167724,4.0,143.9,143.79,6.95216908]
[1641698168124,5.64,143.92,143.79,6.95216908]
[1641698168326,27.66479,143.87,143.78,27.66479]
[1641698168625,37.46679,143.87,143.76,27.66479]
[1641698169226,33.46679,143.87,143.81,6.95120256]
[1641698169426,33.46679,143.87,143.77,7.085]
[1641698169628,33.46679,143.87,143.78,6.95289414]
[1641698170529,33.46679,143.87,143.76,27.66479]
[1641698173131,27.66479,143.87,143.76,27.66479]
[1641698174433,27.66479,143.87,143.79,27.66479]
[1641698174633,4.0,143.85,143.79,27.66479]
[1641698174836,4.0,143.84,143.76,27.66479]
[1641698175634,4.0,143.83,143.76,27.66479]
[1641698175836,4.0,143.8,143.71,6.95627978]
[1641698176034,4.0,143.8,143.68,6.95797384]
[1641698176035,4.0,143.78,143.68,6.95797384]
[1641698176335,31.66479,143.76,143.68,34.62276384]
[1641698176534,36.13079,143.76,143.68,34.62276384]
[1641698176935,4.0,143.75,143.68,34.62276384]
[1641698177135,40.13079,143.76,143.68,34.62276384]
[1641698177334,36.13079,143.76,143.68,34.62276384]
[1641698177535,8.466,143.76,143.68,34.62276384]
[1641698178537,27.66479,143.78,143.68,42.04776384]
[1641698178736,4.0,143.79,143.68,42.04776384]
[1641698180938,27.66479,143.8,143.68,42.04776384]
[1641698182141,4.0,143.79,143.68,42.04776384]
[1641698182341,4.0,143.75,143.68,34.62276384]
[1641698183041,4.0,143.77,143.68,34.62276384]
[1641698183342,4.0,143.76,143.68,34.62276384]
[1641698183543,4.0,143.79,143.68,34.62276384]
[1641698183742,4.0,143.8,143.68,34.62276384]
[1641698184341,4.0,143.8,143.72,27.66479]
[1641698184541,4.0,143.79,143.72,27.66479]
[1641698184742,4.0,143.75,143.68,34.62276384]
[1641698185042,4.0,143.71,143.68,27.66479]
[1641698185242,4.0,143.7,143.62,6.96063759]
[1641698185443,4.0,143.67,143.62,6.96063759]
[1641698185643,9.95,143.67,143.62,6.96063759]
[1641698186244,4.0,143.65,143.62,6.96063759]
[1641698186544,4.0,143.66,143.62,6.96063759]
[1641698186745,4.0,143.65,143.62,6.96063759]
[1641698186942,5.95,143.67,143.62,6.96063759]
[1641698187143,4.0,143.64,143.57,6.96330339]
[1641698187345,4.0,143.67,143.57,6.96330339]
[1641698187546,57.1279,143.7,143.59,4.0]
[1641698187746,57.1279,143.7,143.61,6.96136443]
[1641698187946,102.8715,143.74,143.61,6.96136443]
[1641698188148,4.0,143.73,143.61,6.96136443]
[1641698188548,4.0,143.73,143.63,27.66479]
[1641698188748,4.0,143.72,143.63,27.66479]
[1641698189349,4.0,143.68,143.63,27.66479]
[1641698189550,4.0,143.69,143.61,6.96136443]
[1641698189849,4.0,143.69,143.58,6.96281855]
[1641698190048,4.0,143.68,143.58,6.96281855]
[1641698190248,4.0,143.7,143.58,6.96281855]
[1641698190448,31.66479,143.7,143.61,27.66479]
[1641698191251,109.83431855,143.74,143.61,27.66479]
[1641698191548,109.83431855,143.74,143.61,33.84679]
[1641698191752,4.0,143.73,143.61,33.84679]
[1641698192150,4.0,143.72,143.61,33.84679]
[1641698192549,27.66479,143.71,143.61,33.84679]
[1641698192751,31.66479,143.71,143.61,33.84679]
[1641698193749,31.66479,143.71,143.61,27.66479]
[1641698193950,4.0,143.7,143.61,27.66479]
[1641698194551,27.66479,143.68,143.61,27.66479]
[1641698194950,4.0,143.7,143.61,27.66479]
[1641698195150,27.66479,143.71,143.61,34.62591213]
[1641698195950,98.8715,143.74,143.61,27.66479]
[1641698196152,102.8715,143.74,143.64,6.95966872]
[1641698196350,14.65066855,143.78,143.64,6.95966872]
[1641698196551,27.66479,143.75,143.65,27.66479]
[1641698196951,31.66479,143.75,143.65,27.66479]
[1641698197154,4.0,143.74,143.65,27.66479]
[1641698197453,4.0,143.73,143.65,27.66479]
[1641698197654,4.0,143.73,143.62,63.76377986]
[1641698197655,4.0,143.72,143.62,63.76377986]
[1641698197853,4.0,143.72,143.62,6.96087986]
[1641698198054,4.0,143.71,143.61,27.66479]
[1641698198255,4.0,143.7,143.6,6.96184907]
[1641698198455,27.66479,143.67,143.58,27.66479]
[1641698198656,33.03079,143.67,143.58,27.66479]
[1641698199057,37.03079,143.67,143.58,27.66479]
[1641698199261,33.03079,143.67,143.58,27.66479]
[1641698199858,5.366,143.67,143.58,31.66479]
[1641698200058,115.7411,143.71,143.61,6.96136443]
[1641698200259,4.0,143.74,143.61,6.96136443]
[1641698200558,4.0,143.72,143.63,27.66479]
[1641698200760,4.0,143.71,143.63,27.66479]
[1641698200957,4.0,143.7,143.63,27.66479]
[1641698201158,4.0,143.69,143.63,27.66479]
[1641698201358,4.0,143.68,143.58,34.62736615]
[1641698201559,4.0,143.67,143.58,34.62736615]
[1641698201960,4.0,143.66,143.58,34.62736615]
[1641698202162,4.0,143.66,143.59,2.65325736]
[1641698202661,27.66479,143.64,143.59,2.65325736]
[1641698203561,27.66479,143.66,143.59,2.65325736]
[1641698204462,4.0,143.69,143.59,2.65325736]
[1641698204665,4.0,143.69,143.59,8.98925736]
[1641698205164,4.0,143.69,143.6,2.65325736]
[1641698205465,4.0,143.68,143.6,2.65325736]
[1641698206265,4.0,143.68,143.59,2.65325736]
[1641698208767,4.0,143.68,143.62,27.66479]
[1641698208966,4.0,143.67,143.59,2.65325736]
[1641698209167,4.0,143.65,143.59,2.65325736]
[1641698209367,8.096,143.65,143.59,2.65325736]
[1641698209768,12.096,143.65,143.59,2.65325736]
[1641698209971,4.0,143.6,143.59,2.65325736]
[1641698210168,12.294,143.6,143.51,65.74935337]
[1641698210570,8.294,143.6,143.51,65.74935337]
[1641698210771,8.294,143.6,143.52,27.66479]
[1641698211368,27.66479,143.63,143.52,27.66479]
[1641698211369,4.0,143.62,143.52,27.66479]
[1641698211569,27.66479,143.63,143.54,6.96475832]
[1641698212769,55.2261,143.64,143.55,27.66479]
[1641698212968,31.66479,143.65,143.55,27.66479]
[1641698213169,4.0,143.64,143.55,27.66479]
[1641698213370,12.405,143.64,143.55,27.66479]
[1641698213871,12.405,143.64,143.55,38.03588486]
[1641698214270,8.405,143.64,143.55,38.03588486]
[1641698215372,4.0,143.63,143.55,38.03588486]
[1641698215772,12.405,143.64,143.55,38.03588486]
[1641698215972,4.0,143.62,143.55,38.03588486]
[1641698216173,4.0,143.63,143.55,38.03588486]
[1641698217972,12.405,143.64,143.55,38.03588486]
[1641698218373,4.0,143.63,143.55,38.03588486]
[1641698218974,12.405,143.64,143.55,27.66479]
[1641698219273,31.66479,143.65,143.55,27.66479]
[1641698220375,4.0,143.64,143.55,27.66479]
[1641698220674,4.0,143.63,143.55,27.66479]
[1641698222176,56.7817,143.67,143.56,6.96354584]
[1641698222375,56.7817,143.67,143.56,13.41054584]
[1641698222876,14.65066855,143.68,143.62,27.66479]
[1641698223076,4.0,143.69,143.62,27.66479]
[1641698223875,4.0,143.69,143.58,10.37109486]
[1641698224075,4.0,143.68,143.58,10.37109486]
[1641698224474,4.0,143.67,143.58,10.37109486]
[1641698224875,27.66479,143.65,143.58,38.03588486]
[1641698225175,33.19979,143.65,143.58,38.03588486]
[1641698225777,33.19979,143.65,143.58,27.66479]
[1641698226679,33.19979,143.65,143.57,10.37109486]
[1641698226879,27.66479,143.62,143.57,10.37109486]
[1641698227080,33.09479,143.62,143.57,10.37109486]
[1641698227479,37.09479,143.62,143.57,10.37109486]
[1641698227680,4.0,143.61,143.57,10.37109486]
[1641698227882,4.0,143.61,143.53,10.37109486]
[1641698228081,33.09479,143.62,143.53,10.37109486]
[1641698228484,27.66479,143.62,143.53,10.37109486]
[1641698228884,27.66479,143.62,143.55,27.66479]
[1641698231285,4.0,143.6,143.55,38.03588486]
[1641698231485,4.0,143.6,143.55,10.37109486]
[1641698231686,11.551,143.6,143.55,10.37109486]
[1641698232788,11.551,143.6,143.53,25.75987908]
[1641698233488,11.551,143.6,143.53,10.37109486]
[1641698234088,4.0,143.58,143.53,10.37109486]
[1641698234288,4.0,143.59,143.53,10.37109486]
[1641698234488,4.0,143.58,143.53,10.37109486]
[1641698234887,27.66479,143.55,143.53,10.37109486]
[1641698235088,36.27579,143.55,143.53,10.37109486]
[1641698235288,36.27579,143.55,143.51,6.96597123]
[1641698236788,8.611,143.55,143.51,6.96597123]
[1641698236988,35.21579,143.6,143.51,6.96597123]
[1641698237792,39.21579,143.6,143.51,6.96597123]
[1641698238494,4.0,143.59,143.51,6.96597123]
[1641698238894,27.66479,143.56,143.51,6.96597123]
[1641698239093,35.51479,143.56,143.51,6.96597123]
[1641698245002,7.85,143.56,143.51,6.96597123]
[1641698245202,8.256,143.56,143.51,6.96597123]
[1641698247408,8.256,143.56,143.45,58.78313951]
[1641698247409,4.0,143.52,143.45,58.78313951]
[1641698247608,7.902,143.52,143.45,58.78313951]
[1641698247808,1.742,143.51,143.44,58.78313951]
[1641698248107,7.902,143.52,143.44,58.78313951]
[1641698248309,11.902,143.52,143.44,58.78313951]
[1641698249109,27.66479,143.5,143.44,58.78313951]
[1641698249409,27.66479,143.5,143.4,27.66479]
[1641698249807,4.0,143.49,143.4,27.66479]
[1641698250007,7.313,143.49,143.4,27.66479]
[1641698250408,7.313,143.49,143.41,2.65464502]
[1641698252712,11.313,143.49,143.41,2.65464502]
[1641698252911,4.0,143.48,143.4,27.66479]
[1641698253114,13.055,143.49,143.4,27.66479]
[1641698253313,7.313,143.49,143.4,27.66479]
[1641698253513,29.40679,143.5,143.4,27.66479]
[1641698253713,27.66479,143.5,143.4,27.66479]
[1641698255417,27.66479,143.5,143.41,2.64616835]
[1641698256619,31.66479,143.5,143.41,2.64616835]
[1641698256919,27.66479,143.5,143.41,2.64616835]
[1641698257120,27.66479,143.47,143.41,2.64616835]
[1641698257720,38.16479,143.5,143.41,2.64616835]
[1641698258120,27.66479,143.5,143.41,2.64616835]
[1641698260223,31.66479,143.5,143.41,2.64616835]
[1641698262127,27.66479,143.5,143.41,2.64616835]
[1641698264531,67.2387,143.51,143.41,2.64616835]
[1641698266234,71.2387,143.51,143.41,2.64616835]
[1641698266434,4.0,143.5,143.41,2.64616835]
[1641698266636,4.0,143.49,143.41,2.64616835]
[1641698266834,4.0,143.5,143.41,2.64616835]
[1641698267033,71.2387,143.51,143.41,2.64616835]
[1641698267234,67.2387,143.51,143.41,2.64616835]
[1641698268737,8.803,143.51,143.41,6.64616835]
[1641698268939,14.65066855,143.56,143.47,6.96815553]
[1641698269238,14.65066855,143.56,143.47,12.51815553]
[1641698269437,14.65066855,143.56,143.51,27.66479]
[1641698269736,14.65066855,143.56,143.51,34.66979]
[1641698270138,55.1022,143.59,143.51,34.66979]
[1641698270738,4.0,143.57,143.48,2.64616835]
[1641698271439,27.66479,143.55,143.48,2.64616835]
[1641698271739,33.83779,143.55,143.48,2.64616835]
[1641698272837,6.173,143.55,143.48,2.64616835]
[1641698273840,4.0,143.54,143.48,2.64616835]
[1641698274641,8.246,143.55,143.48,2.64616835]
[1641698274840,4.0,143.54,143.48,2.64616835]
[1641698275142,4.0,143.54,143.45,2.64616835]
[1641698275340,27.66479,143.53,143.45,2.64616835]
[1641698276342,1.742,143.54,143.45,2.64616835]
[1641698277242,5.742,143.54,143.45,2.64616835]
[1641698277442,27.66479,143.53,143.45,2.64616835]
[1641698277643,40.53079,143.53,143.45,2.64616835]
[1641698277843,4.0,143.5,143.45,2.64616835]
[1641698278042,5.44,143.5,143.45,2.64616835]
[1641698278243,7.182,143.5,143.45,2.64616835]
[1641698278444,11.182,143.5,143.45,2.64616835]
[1641698278643,9.44,143.5,143.45,2.64616835]
[1641698279144,9.44,143.5,143.42,2.64616835]
[1641698279344,4.0,143.49,143.42,2.64616835]
[1641698279545,27.66479,143.47,143.42,2.64616835]
[1641698279750,36.31579,143.47,143.42,2.64616835]
[1641698283651,40.31579,143.47,143.42,2.64616835]
[1641698283850,4.0,143.43,143.41,10.38325674]
[1641698284052,12.098,143.43,143.41,10.38325674]
[1641698284651,4.0,143.42,143.41,10.38325674]
[1641698285454,4.0,143.42,143.37,27.66479]
[1641698285652,35.76279,143.43,143.37,27.66479]
[1641698285853,39.76279,143.43,143.37,27.66479]
[1641698286155,35.76279,143.43,143.37,27.66479]
[1641698287256,39.76279,143.43,143.37,27.66479]
[1641698288256,35.76279,143.43,143.37,27.66479]
[1641698288454,39.76279,143.43,143.37,27.66479]
[1641698288856,35.76279,143.43,143.37,27.66479]
[1641698289556,39.76279,143.43,143.37,27.66479]
[1641698289756,35.76279,143.43,143.37,27.66479]
[1641698289957,39.76279,143.43,143.37,27.66479]
[1641698290158,35.76279,143.43,143.37,27.66479]
[1641698290357,8.098,143.43,143.37,27.66479]
[1641698290557,4.0,143.44,143.37,27.66479]
[1641698290757,4.0,143.45,143.37,27.66479]
[1641698290957,59.7689,143.46,143.37,27.66479]
[1641698291359,59.7689,143.46,143.37,35.81879]
[1641698292057,27.66479,143.47,143.37,35.81879]
[1641698292259,27.66479,143.47,143.37,42.79156133]
[1641698292459,27.66479,143.47,143.37,34.63756133]
[1641698292960,31.66479,143.47,143.38,10.38325674]
[1641698293159,4.0,143.45,143.38,10.38325674]
[1641698293361,9.515,143.45,143.38,10.38325674]
[1641698293662,31.66479,143.44,143.38,10.38325674]
[1641698293960,27.66479,143.44,143.37,27.66479]
[1641698294862,31.66479,143.44,143.37,27.66479]
[1641698296962,4.0,143.43,143.37,27.66479]
[1641698297163,4.0,143.42,143.37,27.66479]
[1641698297363,7.484,143.42,143.37,27.66479]
[1641698300265,4.0,143.41,143.37,27.66479]
[1641698301163,4.0,143.4,143.37,27.66479]
[1641698301565,4.0,143.39,143.3,57.0551]
[1641698301764,10.81,143.39,143.3,57.0551]
[1641698301964,27.66479,143.38,143.3,57.0551]
[1641698302164,31.66479,143.38,143.29,27.66479]
[1641698302364,31.66479,143.38,143.31,10.38054828]
[1641698303266,31.66479,143.38,143.29,38.04533828]
[1641698303466,31.66479,143.38,143.29,53.40931509]
[1641698303669,27.66479,143.38,143.29,53.40931509]
[1641698305969,33.67479,143.38,143.29,53.40931509]
[1641698308371,6.01,143.38,143.3,4.0]
[1641698308574,1.744,143.43,143.32,6.97544643]
[1641698308772,141.53909,143.44,143.32,6.97544643]
[1641698308972,141.53909,143.44,143.32,14.05544643]
[1641698309372,141.53909,143.44,143.33,4.0]
[1641698309972,84.86479,143.44,143.33,4.0]
[1641698310171,84.86479,143.44,143.36,27.66479]
[1641698310672,27.66479,143.44,143.36,27.66479]
[1641698310876,1.743,143.47,143.38,6.97228517]
[1641698311074,57.6158,143.49,143.38,6.97228517]
[1641698312073,57.6158,143.49,143.39,27.66479]
[1641698312674,57.6158,143.49,143.39,38.04533828]
[1641698314277,27.66479,143.5,143.39,38.04533828]
[1641698315576,27.66479,143.5,143.39,42.04533828]
[1641698316278,27.66479,143.5,143.39,69.71012828]
[1641698316675,4.0,143.49,143.4,10.38054828]
[1641698316875,4.0,143.48,143.4,10.38054828]
[1641698317275,9.95,143.49,143.4,10.38054828]
[1641698317476,9.95,143.49,143.39,38.04533828]
[1641698321380,11.692,143.49,143.39,38.04533828]
[1641698323380,9.95,143.49,143.39,38.04533828]
[1641698324082,4.0,143.48,143.39,38.04533828]
[1641698324284,27.66479,143.46,143.4,2.66338988]
[1641698324485,4.0,143.45,143.4,2.66338988]
[1641698324883,4.0,143.44,143.4,2.66338988]
[1641698325083,4.0,143.43,143.4,2.66338988]
[1641698325283,10.385,143.43,143.37,2.66338988]
[1641698325584,6.385,143.43,143.37,2.66338988]
[1641698326285,27.66479,143.42,143.37,2.66338988]
[1641698326685,31.66479,143.42,143.35,13.04393816]
[1641698327787,31.66479,143.42,143.34,2.66338988]
[1641698332394,27.66479,143.42,143.34,2.66338988]
[1641698332995,53.3482097,143.46,143.34,2.66338988]
[1641698333394,57.3482097,143.46,143.34,2.66338988]
[1641698334196,53.3482097,143.46,143.34,2.66338988]
[1641698335701,53.3482097,143.46,143.34,13.04393816]
[1641698335902,57.3482097,143.46,143.34,13.04393816]
[1641698337103,57.3482097,143.46,143.34,28.43217186]
[1641698337704,53.3482097,143.46,143.34,28.43217186]
[1641698337905,4.0,143.44,143.34,13.04393816]
[1641698338506,31.66479,143.43,143.34,13.04393816]
[1641698338706,35.95079,143.43,143.34,13.04393816]
[1641698338906,8.286,143.43,143.34,20.01816838]
[1641698339710,38.36479,143.46,143.35,2.66338988]
[1641698339911,27.66479,143.46,143.35,2.66338988]
[1641698340512,55.32958,143.46,143.35,2.66338988]
[1641698341311,4.0,143.44,143.35,2.66338988]
[1641698341512,4.0,143.43,143.35,2.66338988]
[1641698341812,4.0,143.42,143.35,2.66338988]
[1641698342211,1.743,143.41,143.35,2.66338988]
[1641698342412,8.677,143.41,143.35,2.66338988]
[1641698342610,27.66479,143.4,143.35,2.66338988]
[1641698343011,27.66479,143.4,143.33,13.04393816]
[1641698345414,27.66479,143.4,143.33,2.66338988]
[1641698348018,27.66479,143.4,143.33,13.05687865]
[1641698348518,27.66479,143.4,143.33,2.66338988]
[1641698351423,27.66479,143.4,143.33,13.05864431]
[1641698352023,40.26179,143.4,143.33,13.05864431]
[1641698352624,27.66479,143.36,143.33,13.05864431]
[1641698352825,35.34079,143.36,143.33,13.05864431]
[1641698353224,35.34079,143.36,143.31,2.66338988]
[1641698356026,4.0,143.33,143.21,58.78313951]
[1641698356326,4.0,143.31,143.21,115.25023951]
[1641698356727,27.66479,143.29,143.21,115.25023951]
[1641698356929,35.64679,143.29,143.21,115.25023951]
[1641698357127,35.64679,143.29,143.21,56.4671]
[1641698363132,39.64679,143.29,143.21,56.4671]
[1641698364534,39.64679,143.29,143.19,27.66479]
[1641698365035,4.0,143.28,143.19,27.66479]
[1641698367142,27.66479,143.26,143.19,27.66479]
[1641698368046,35.38279,143.26,143.19,27.66479]
[1641698370849,38.04479,143.29,143.19,27.66479]
[1641698375253,38.04479,143.29,143.19,55.32958]
[1641698375554,27.66479,143.29,143.19,55.32958]
[1641698375753,27.66479,143.29,143.19,67.81358]
[1641698375955,1.745,143.34,143.23,4.0]
[1641698376153,1.744,143.36,143.23,11.08]
[1641698376356,58.9334,143.36,143.24,56.347]
[1641698377258,86.59819,143.36,143.27,27.66479]
[1641698377457,86.59819,143.36,143.27,35.38179]
[1641698379162,86.59819,143.36,143.27,27.66479]
[1641698379761,86.59819,143.36,143.24,84.01179]
[1641698379961,94.38219,143.36,143.24,84.01179]
[1641698380161,98.38219,143.36,143.24,84.01179]
[1641698380561,4.0,143.35,143.24,84.01179]
[1641698380762,4.0,143.33,143.24,84.01179]
[1641698380962,4.0,143.32,143.25,10.39151853]
[1641698381163,16.62250882,143.33,143.25,10.39151853]
[1641698381365,27.66479,143.29,143.25,10.39151853]
[1641698381564,34.53079,143.29,143.25,10.39151853]
[1641698381964,34.53079,143.29,143.21,27.66479]
[1641698383066,34.53079,143.29,143.21,38.05630853]
[1641698385270,6.866,143.29,143.21,38.05630853]
[1641698385669,16.39566855,143.33,143.21,38.05630853]
[1641698385868,14.65066855,143.33,143.21,38.05630853]
[1641698386769,78.74256855,143.35,143.21,53.48703793]
[1641698387372,27.66479,143.34,143.25,27.66479]
[1641698387573,35.35879,143.34,143.25,27.66479]
[1641698388174,4.0,143.33,143.21,53.48703793]
[1641698388374,4.0,143.33,143.22,10.39151853]
[1641698388576,5.744,143.32,143.22,10.39151853]
[1641698388877,4.0,143.32,143.22,10.39151853]
[1641698389075,5.744,143.33,143.22,10.39151853]
[1641698389275,27.66479,143.31,143.21,53.48318753]
[1641698389475,35.95779,143.31,143.21,53.48318753]
[1641698390678,37.70279,143.31,143.21,53.48318753]
[1641698390878,41.70279,143.31,143.21,38.05630853]
[1641698391177,39.95779,143.31,143.21,38.05630853]
[1641698391578,35.95779,143.31,143.21,38.05630853]
[1641698391978,39.95779,143.31,143.21,38.05630853]
[1641698392279,35.95779,143.31,143.21,38.05630853]
[1641698392477,4.0,143.29,143.21,38.05630853]
[1641698393380,27.66479,143.28,143.21,38.05630853]
[1641698393582,33.07579,143.28,143.21,38.05630853]
[1641698395182,37.07579,143.28,143.21,38.05630853]
[1641698396081,4.0,143.27,143.21,10.39151853]
[1641698396282,1.745,143.26,143.21,10.39151853]
[1641698396582,1.745,143.27,143.22,2.67200602]
[1641698396782,27.66479,143.28,143.22,2.67200602]
[1641698397282,37.70279,143.31,143.22,2.67200602]
[1641698397485,8.293,143.31,143.22,37.31686791]
[1641698397682,22.94366855,143.31,143.22,34.64486189]
[1641698398686,8.293,143.31,143.23,13.06352455]
[1641698399488,27.66479,143.28,143.23,13.06352455]
[1641698399689,33.65579,143.28,143.23,13.06352455]
[1641698400688,33.65579,143.28,143.19,70.91152455]
[1641698401493,33.65579,143.28,143.2,13.06352455]
[1641698403590,27.66479,143.24,143.2,13.06352455]
[1641698403789,34.70679,143.24,143.2,13.06352455]
[1641698404691,34.70679,143.24,143.2,10.39151853]
[1641698404891,34.70679,143.24,143.17,13.06352455]
[1641698407994,1.745,143.26,143.17,13.06352455]
[1641698408193,59.4868,143.27,143.17,13.06352455]
[1641698408594,59.4868,143.27,143.17,17.06352455]
[1641698408795,59.4868,143.27,143.17,32.48478531]
[1641698408995,59.4868,143.27,143.19,6.98177756]
[1641698409195,59.4868,143.27,143.17,28.48478531]
[1641698409396,67.9458,143.27,143.17,28.48478531]
[1641698409596,67.9458,143.27,143.18,2.67200602]
[1641698410397,67.9458,143.27,143.17,13.06352455]
[1641698411299,71.9458,143.27,143.17,28.49333079]
[1641698411800,27.66479,143.25,143.17,28.49333079]
[1641698412001,27.66479,143.25,143.17,13.06352455]
[1641698412804,31.66479,143.25,143.17,13.06352455]
[1641698413005,1.745,143.24,143.17,13.06352455]
[1641698413205,12.786,143.24,143.17,13.06352455]
[1641698413404,4.0,143.23,143.17,13.06352455]
[1641698413805,27.66479,143.21,143.17,13.06352455]
[1641698414005,34.47979,143.21,143.14,2.67200602]
[1641698417612,34.47979,143.21,143.13,2.67200602]
[1641698417812,34.47979,143.21,143.13,30.33679602]
[1641698418414,6.815,143.21,143.13,30.33679602]
[1641698418613,6.815,143.21,143.14,2.67200602]
[1641698419212,59.1532,143.22,143.14,2.67200602]
[1641698420513,59.1532,143.22,143.14,13.06352455]
[1641698420915,1.746,143.21,143.14,13.06352455]
[1641698421114,7.937,143.21,143.14,13.06352455]
[1641698421314,7.937,143.21,143.14,2.67200602]
[1641698421915,27.66479,143.2,143.14,2.67200602]
[1641698425319,36.01179,143.2,143.14,2.67200602]
[1641698428623,27.66479,143.2,143.14,2.67200602]
[1641698428824,1.746,143.24,143.14,13.6559778]
[1641698429023,72.53156855,143.27,143.17,6.98250882]
[1641698429923,72.53156855,143.27,143.18,2.67200602]
[1641698430124,85.54569,143.27,143.19,27.66479]
[1641698430924,85.54569,143.27,143.2,2.67200602]
[1641698431825,89.54569,143.27,143.2,2.67200602]
[1641698432026,85.54569,143.27,143.2,2.67200602]
[1641698432228,87.29069,143.27,143.2,2.67200602]
[1641698432528,91.29069,143.27,143.2,2.67200602]
[1641698432727,89.54569,143.27,143.19,27.66479]
[1641698432927,97.06469,143.27,143.19,27.66479]
[1641698433426,93.06469,143.27,143.19,27.66479]
[1641698433629,2.2668038,143.26,143.19,27.66479]
[1641698434228,85.54569,143.27,143.19,27.66479]
[1641698435230,85.54569,143.27,143.2,2.66858055]
[1641698437035,27.66479,143.27,143.2,2.66858055]
[1641698437231,1.745,143.29,143.2,6.66858055]
[1641698437433,42.31545855,143.3,143.2,8.98558055]
[1641698437933,27.66479,143.3,143.2,8.98558055]
[1641698438133,27.66479,143.3,143.22,27.66479]
[1641698439235,27.66479,143.3,143.23,2.66858055]
[1641698440135,58.4911,143.31,143.23,2.66858055]
[1641698441136,2.26614619,143.3,143.23,2.66858055]
[1641698441637,2.26614619,143.3,143.23,6.66858055]
[1641698442036,14.65066855,143.33,143.25,27.66479]
[1641698442938,27.66479,143.34,143.25,27.66479]
[1641698444141,27.66479,143.34,143.25,31.66479]
[1641698444339,42.31545855,143.36,143.27,10.97788012]
[1641698444541,14.65066855,143.37,143.27,10.97788012]